[Event "Early-Titled-Tuesday-Blitz-September-12-2023"]
[Site "Chess.com"]
[Date "2023.09.12"]
[Round "8"]
[White "seramoral"]
[Black "turayev_shahruh17"]
[Result "1/2-1/2"]
[WhiteElo "2619"]
[BlackElo "2815"]
[TimeControl "180+1"]
[EndTime "9:29:00 PDT"]
[Termination "Game drawn by repetition"]

1. c4 {[%clk 0:03:00.9]} 1... Nf6 {[%clk 0:02:58.3]} 2. Nc3 {[%clk 0:02:59.6]}
2... g6 {[%clk 0:02:59.2]} 3. g3 {[%clk 0:02:57.3]} 3... Bg7 {[%clk 0:02:58.8]}
4. Bg2 {[%clk 0:02:56.8]} 4... O-O {[%clk 0:02:59.7]} 5. Rb1 {[%clk 0:02:50.2]}
5... e5 {[%clk 0:02:57.2]} 6. d3 {[%clk 0:02:48.3]} 6... c6 {[%clk 0:02:55.8]}
7. e4 {[%clk 0:02:45.4]} 7... d6 {[%clk 0:02:53.3]} 8. Nge2 {[%clk 0:02:42.1]}
8... Be6 {[%clk 0:02:53.7]} 9. O-O {[%clk 0:02:39.2]} 9... d5 {[%clk 0:02:53.9]}
10. exd5 {[%clk 0:02:26]} 10... cxd5 {[%clk 0:02:54.8]} 11. Bg5 {[%clk
0:02:26.1]} 11... dxc4 {[%clk 0:02:26.8]} 12. dxc4 {[%clk 0:02:25.4]} 12... Nc6
{[%clk 0:02:25.8]} 13. b3 {[%clk 0:02:22.5]} 13... h6 {[%clk 0:02:15.7]} 14.
Bxf6 {[%clk 0:02:19.6]} 14... Qxf6 {[%clk 0:02:15.2]} 15. Nd5 {[%clk 0:02:13.5]}
15... Qd8 {[%clk 0:02:11.8]} 16. Qc1 {[%clk 0:02:09.3]} 16... Nd4 {[%clk
0:02:05.7]} 17. Nxd4 {[%clk 0:02:04.7]} 17... exd4 {[%clk 0:02:06.4]} 18. Re1
{[%clk 0:02:02.2]} 18... Kh7 {[%clk 0:01:55]} 19. Qd2 {[%clk 0:01:54]} 19... Bf5
{[%clk 0:01:35.8]} 20. Be4 {[%clk 0:01:49.1]} 20... Bxe4 {[%clk 0:01:29.8]} 21.
Rxe4 {[%clk 0:01:48.3]} 21... b5 {[%clk 0:01:30.7]} 22. Rbe1 {[%clk 0:01:38.8]}
22... bxc4 {[%clk 0:01:29.9]} 23. bxc4 {[%clk 0:01:39.4]} 23... Rc8 {[%clk
0:01:26.5]} 24. Qd3 {[%clk 0:01:25.6]} 24... Qa5 {[%clk 0:01:25]} 25. R1e2
{[%clk 0:01:20.3]} 25... Qa4 {[%clk 0:01:04.8]} 26. Rc2 {[%clk 0:01:19]} 26...
Rc5 {[%clk 0:00:57]} 27. Re7 {[%clk 0:01:12.3]} 27... Rfc8 {[%clk 0:00:50.5]}
28. Nf4 {[%clk 0:00:56.1]} 28... Rxc4 {[%clk 0:00:48.4]} 29. Rxc4 {[%clk
0:00:52.3]} 29... Qxc4 {[%clk 0:00:49.3]} 30. Qxc4 {[%clk 0:00:52]} 30... Rxc4
{[%clk 0:00:48.6]} 31. Rxf7 {[%clk 0:00:47.6]} 31... Kg8 {[%clk 0:00:48.5]} 32.
Rxa7 {[%clk 0:00:45.5]} 32... Rc2 {[%clk 0:00:48.3]} 33. Kg2 {[%clk 0:00:38.3]}
33... g5 {[%clk 0:00:46.4]} 34. Nd3 {[%clk 0:00:37.8]} 34... Rc3 {[%clk
0:00:43.8]} 35. Nb4 {[%clk 0:00:37.8]} 35... Rc4 {[%clk 0:00:42.1]} 36. a3
{[%clk 0:00:35.3]} 36... Rc3 {[%clk 0:00:39.8]} 37. a4 {[%clk 0:00:32.9]} 37...
Rc4 {[%clk 0:00:37.8]} 38. Rb7 {[%clk 0:00:23.9]} 38... Bf8 {[%clk 0:00:33]} 39.
Nd3 {[%clk 0:00:19.4]} 39... Rxa4 {[%clk 0:00:30.7]} 40. Kf3 {[%clk 0:00:19.8]}
40... Bg7 {[%clk 0:00:25.3]} 41. Ke4 {[%clk 0:00:18.3]} 41... Ra8 {[%clk
0:00:25.1]} 42. Kf5 {[%clk 0:00:14.1]} 42... Rf8+ {[%clk 0:00:23.3]} 43. Ke4
{[%clk 0:00:14.4]} 43... Re8+ {[%clk 0:00:22.6]} 44. Kf3 {[%clk 0:00:14.7]}
44... Rf8+ {[%clk 0:00:22.4]} 45. Kg2 {[%clk 0:00:14.7]} 45... Rc8 {[%clk
0:00:19.1]} 46. Kf3 {[%clk 0:00:14.7]} 46... Rf8+ {[%clk 0:00:19]} 47. Ke4
{[%clk 0:00:14.4]} 47... Re8+ {[%clk 0:00:19.3]} 48. Kf5 {[%clk 0:00:14.5]}
48... Rf8+ {[%clk 0:00:19.7]} 49. Ke4 {[%clk 0:00:14.3]} 1/2-1/2

[Event "Early-Titled-Tuesday-Blitz-September-12-2023"]
[Site "Chess.com"]
[Date "2023.09.12"]
[Round "8"]
[White "DanyKopy"]
[Black "Forge13"]
[Result "1-0"]
[WhiteElo "2535"]
[BlackElo "2619"]
[TimeControl "180+1"]
[EndTime "9:29:00 PDT"]
[Termination "DanyKopy won by resignation"]

1. d4 {[%clk 0:03:00.9]} 1... Nf6 {[%clk 0:02:59.6]} 2. Nf3 {[%clk 0:03:00.9]}
2... d6 {[%clk 0:03:00.2]} 3. Nbd2 {[%clk 0:02:58.9]} 3... Nbd7 {[%clk
0:02:55.5]} 4. e4 {[%clk 0:02:58.5]} 4... e5 {[%clk 0:02:56.1]} 5. Bc4 {[%clk
0:02:58.3]} 5... Be7 {[%clk 0:02:54.7]} 6. O-O {[%clk 0:02:56.4]} 6... O-O
{[%clk 0:02:54.4]} 7. c3 {[%clk 0:02:56]} 7... c6 {[%clk 0:02:54.2]} 8. Re1
{[%clk 0:02:55]} 8... b5 {[%clk 0:02:52.5]} 9. Bb3 {[%clk 0:02:54.6]} 9... a5
{[%clk 0:02:51]} 10. a4 {[%clk 0:02:54.2]} 10... b4 {[%clk 0:02:46.9]} 11. Nf1
{[%clk 0:02:53.5]} 11... exd4 {[%clk 0:01:51.5]} 12. cxd4 {[%clk 0:02:52.6]}
12... d5 {[%clk 0:01:51.9]} 13. e5 {[%clk 0:02:49.6]} 13... Ne4 {[%clk
0:01:51.9]} 14. Bc2 {[%clk 0:02:46]} 14... f5 {[%clk 0:01:49.4]} 15. exf6 {[%clk
0:02:42.6]} 15... Ndxf6 {[%clk 0:01:46.5]} 16. Ne5 {[%clk 0:02:36.4]} 16... Bb7
{[%clk 0:01:42]} 17. f3 {[%clk 0:01:53.1]} 17... Nd6 {[%clk 0:01:41.4]} 18. Bg5
{[%clk 0:01:38.1]} 18... Nf7 {[%clk 0:01:38.1]} 19. Nxf7 {[%clk 0:01:30.7]}
19... Rxf7 {[%clk 0:01:39]} 20. Qd3 {[%clk 0:01:30.3]} 20... Ba6 {[%clk
0:01:32]} 21. Qf5 {[%clk 0:01:29.1]} 21... Qb6 {[%clk 0:00:56.4]} 22. Bxf6
{[%clk 0:01:15.3]} 22... gxf6 {[%clk 0:00:57.3]} 23. Qg4+ {[%clk 0:01:00.6]}
23... Kh8 {[%clk 0:00:55.5]} 24. Bf5 {[%clk 0:00:53]} 24... Rg8 {[%clk
0:00:45.6]} 25. Qh4 {[%clk 0:00:50.4]} 25... Rg5 {[%clk 0:00:42.4]} 26. Ng3
{[%clk 0:00:48.2]} 26... Rfg7 {[%clk 0:00:38.6]} 27. Re3 {[%clk 0:00:37.5]}
27... c5 {[%clk 0:00:25.5]} 28. Rae1 {[%clk 0:00:34.8]} 28... Qd8 {[%clk
0:00:22.4]} 29. Qh6 {[%clk 0:00:19.3]} 29... cxd4 {[%clk 0:00:06.7]} 30. Rxe7
{[%clk 0:00:19]} 30... Rxe7 {[%clk 0:00:07.1]} 31. Qxf6+ {[%clk 0:00:19.1]}
31... Rgg7 {[%clk 0:00:07.7]} 32. Re6 {[%clk 0:00:11.8]} 32... Bc8 {[%clk
0:00:03.8]} 33. Rd6 {[%clk 0:00:05.2]} 33... Qg8 {[%clk 0:00:03]} 34. Bxc8
{[%clk 0:00:05]} 34... Qxc8 {[%clk 0:00:03.9]} 35. Nf5 {[%clk 0:00:04.3]} 35...
Rf7 {[%clk 0:00:02.8]} 36. Rd8+ {[%clk 0:00:02.6]} 36... Qxd8 {[%clk 0:00:03.4]}
37. Qxd8+ {[%clk 0:00:03.4]} 37... Rg8 {[%clk 0:00:04.3]} 38. Qxd5 {[%clk
0:00:03.4]} 38... Rgf8 {[%clk 0:00:05]} 39. Nxd4 {[%clk 0:00:03.4]} 39... Kg8
{[%clk 0:00:05.9]} 40. Ne6 {[%clk 0:00:02.8]} 40... Re8 {[%clk 0:00:06.3]} 41.
Ng5 {[%clk 0:00:03.1]} 41... Rf8 {[%clk 0:00:06]} 42. Nxf7 {[%clk 0:00:03.1]}
42... Rxf7 {[%clk 0:00:06.9]} 43. Qxa5 {[%clk 0:00:03.2]} 43... Kg7 {[%clk
0:00:07.8]} 44. Qd5 {[%clk 0:00:03.3]} 1-0

[Event "Early-Titled-Tuesday-Blitz-September-12-2023"]
[Site "Chess.com"]
[Date "2023.09.12"]
[Round "8"]
[White "tteshan"]
[Black "Dr_crypt"]
[Result "0-1"]
[WhiteElo "2537"]
[BlackElo "2421"]
[TimeControl "180+1"]
[EndTime "9:29:05 PDT"]
[Termination "Dr_crypt won by resignation"]

1. d4 {[%clk 0:03:00.9]} 1... d5 {[%clk 0:02:58.8]} 2. c4 {[%clk 0:03:01.4]}
2... e6 {[%clk 0:02:58.9]} 3. Nc3 {[%clk 0:03:01.8]} 3... a6 {[%clk 0:02:59.8]}
4. cxd5 {[%clk 0:03:01.3]} 4... exd5 {[%clk 0:03:00.1]} 5. Nf3 {[%clk
0:03:01.8]} 5... c6 {[%clk 0:02:52.3]} 6. Bf4 {[%clk 0:03:02.1]} 6... Bd6 {[%clk
0:02:52.3]} 7. Be5 {[%clk 0:02:58.9]} 7... f6 {[%clk 0:02:50.5]} 8. Bg3 {[%clk
0:02:55.6]} 8... Ne7 {[%clk 0:02:49.2]} 9. e3 {[%clk 0:02:54.1]} 9... Bf5 {[%clk
0:02:49.4]} 10. Qb3 {[%clk 0:02:49.3]} 10... Bxg3 {[%clk 0:02:42.1]} 11. hxg3
{[%clk 0:02:49.1]} 11... Qc7 {[%clk 0:02:27.2]} 12. Na4 {[%clk 0:02:41.3]} 12...
Nd7 {[%clk 0:02:22.9]} 13. Be2 {[%clk 0:02:36.6]} 13... Qa5+ {[%clk 0:02:04.8]}
14. Kf1 {[%clk 0:02:30.1]} 14... b5 {[%clk 0:02:02]} 15. Nc5 {[%clk 0:02:24.8]}
15... Nxc5 {[%clk 0:01:50.5]} 16. dxc5 {[%clk 0:02:25.7]} 16... O-O {[%clk
0:01:42.2]} 17. Nd4 {[%clk 0:02:24.5]} 17... Bg6 {[%clk 0:01:42.1]} 18. Bd3
{[%clk 0:02:02.1]} 18... Qa4 {[%clk 0:01:19.1]} 19. Bxg6 {[%clk 0:01:57.9]}
19... hxg6 {[%clk 0:01:18.8]} 20. Qd3 {[%clk 0:01:34.2]} 20... Qc4 {[%clk
0:01:17.3]} 21. Ke2 {[%clk 0:01:34.8]} 21... Qxd3+ {[%clk 0:01:16.4]} 22. Kxd3
{[%clk 0:01:34.8]} 22... Kf7 {[%clk 0:01:17.1]} 23. Rh4 {[%clk 0:01:31.9]} 23...
g5 {[%clk 0:01:16.3]} 24. Rh3 {[%clk 0:01:30.1]} 24... Rh8 {[%clk 0:01:16.1]}
25. Rah1 {[%clk 0:01:28.5]} 25... Rhc8 {[%clk 0:01:15.9]} 26. g4 {[%clk
0:01:18.3]} 26... Ng6 {[%clk 0:01:16.1]} 27. Nf5 {[%clk 0:00:57.4]} 27... Ne5+
{[%clk 0:01:14.3]} 28. Kc2 {[%clk 0:00:54.2]} 28... Rg8 {[%clk 0:00:54.3]} 29.
f3 {[%clk 0:00:48.2]} 29... Nd7 {[%clk 0:00:52.1]} 30. b4 {[%clk 0:00:15.2]}
30... a5 {[%clk 0:00:52]} 31. a3 {[%clk 0:00:15.5]} 31... axb4 {[%clk
0:00:51.9]} 32. axb4 {[%clk 0:00:16.4]} 32... Ra2+ {[%clk 0:00:51.2]} 33. Kc3
{[%clk 0:00:14.9]} 33... Ra3+ {[%clk 0:00:47.1]} 34. Kd4 {[%clk 0:00:14.2]}
34... Rb3 {[%clk 0:00:45.3]} 35. Nd6+ {[%clk 0:00:13.6]} 35... Ke6 {[%clk
0:00:43.5]} 36. e4 {[%clk 0:00:11.6]} 36... Rxb4+ {[%clk 0:00:42.5]} 37. Ke3
{[%clk 0:00:11.9]} 37... d4+ {[%clk 0:00:40.1]} 38. Kf2 {[%clk 0:00:11.1]} 38...
Nxc5 {[%clk 0:00:38.5]} 39. Nf5 {[%clk 0:00:11.6]} 39... Nd3+ {[%clk 0:00:35.7]}
40. Kg3 {[%clk 0:00:11.6]} 40... Nf4 {[%clk 0:00:28.1]} 41. Rh7 {[%clk
0:00:11.5]} 41... Rb2 {[%clk 0:00:27.9]} 42. Nxd4+ {[%clk 0:00:08.8]} 42... Ke5
{[%clk 0:00:27]} 43. Nxc6+ {[%clk 0:00:08.6]} 43... Kd6 {[%clk 0:00:27.1]} 44.
Rd1+ {[%clk 0:00:05.6]} 44... Kxc6 {[%clk 0:00:26.9]} 45. Rh2 {[%clk 0:00:05.4]}
45... b4 {[%clk 0:00:24.9]} 46. Rc1+ {[%clk 0:00:04.8]} 46... Kb5 {[%clk
0:00:24.8]} 47. Rc7 {[%clk 0:00:04.8]} 47... Rd8 {[%clk 0:00:23.5]} 48. Rxg7
{[%clk 0:00:04.3]} 48... Rdd2 {[%clk 0:00:23.4]} 49. Rb7+ {[%clk 0:00:04.4]}
49... Kc6 {[%clk 0:00:23]} 0-1

[Event "Early-Titled-Tuesday-Blitz-September-12-2023"]
[Site "Chess.com"]
[Date "2023.09.12"]
[Round "8"]
[White "Eagle_2019"]
[Black "Durarbayli"]
[Result "1/2-1/2"]
[WhiteElo "2691"]
[BlackElo "2887"]
[TimeControl "180+1"]
[EndTime "9:29:07 PDT"]
[Termination "Game drawn by repetition"]

1. d4 {[%clk 0:03:00.9]} 1... Nf6 {[%clk 0:02:59.7]} 2. Bg5 {[%clk 0:02:59.8]}
2... d5 {[%clk 0:02:58.4]} 3. e3 {[%clk 0:02:59.2]} 3... c5 {[%clk 0:02:56.4]}
4. Bxf6 {[%clk 0:02:53]} 4... gxf6 {[%clk 0:02:57.3]} 5. dxc5 {[%clk 0:02:52.4]}
5... Nc6 {[%clk 0:02:55.8]} 6. Nf3 {[%clk 0:02:51.9]} 6... e5 {[%clk 0:02:55.3]}
7. c4 {[%clk 0:02:51.2]} 7... dxc4 {[%clk 0:02:48.6]} 8. Qxd8+ {[%clk
0:02:49.7]} 8... Nxd8 {[%clk 0:02:49.5]} 9. Bxc4 {[%clk 0:02:49.7]} 9... Bxc5
{[%clk 0:02:50.2]} 10. Nc3 {[%clk 0:02:49.5]} 10... Be6 {[%clk 0:02:43.4]} 11.
Bxe6 {[%clk 0:02:47.5]} 11... fxe6 {[%clk 0:02:44.3]} 12. Ke2 {[%clk 0:02:43.9]}
12... Ke7 {[%clk 0:02:43.8]} 13. Rac1 {[%clk 0:02:43.7]} 13... Nc6 {[%clk
0:02:40.9]} 14. Rhd1 {[%clk 0:02:39.9]} 14... Rhd8 {[%clk 0:02:32.5]} 15. Nd2
{[%clk 0:02:37]} 15... f5 {[%clk 0:02:20.6]} 16. Nb3 {[%clk 0:02:35]} 16... Rxd1
{[%clk 0:02:04]} 17. Rxd1 {[%clk 0:02:33.5]} 17... Bb4 {[%clk 0:01:57.2]} 18.
Rc1 {[%clk 0:02:29.1]} 18... Rg8 {[%clk 0:01:51.8]} 19. Kf1 {[%clk 0:02:23.1]}
19... Rg4 {[%clk 0:01:45.3]} 20. Na4 {[%clk 0:02:09.5]} 20... Bd6 {[%clk
0:01:17.2]} 21. Nac5 {[%clk 0:02:07.2]} 21... Nd8 {[%clk 0:01:15]} 22. f3 {[%clk
0:01:32]} 22... Rb4 {[%clk 0:01:09.2]} 23. Nd3 {[%clk 0:01:19.4]} 23... Rb5
{[%clk 0:01:09.2]} 24. Nd2 {[%clk 0:01:09.4]} 24... Nc6 {[%clk 0:00:45]} 25. Nc4
{[%clk 0:01:08.8]} 25... e4 {[%clk 0:00:42.8]} 26. fxe4 {[%clk 0:01:08.5]} 26...
fxe4 {[%clk 0:00:43.7]} 27. Nf2 {[%clk 0:01:08.2]} 27... Bxh2 {[%clk 0:00:40.8]}
28. Nxe4 {[%clk 0:01:08.2]} 28... Bc7 {[%clk 0:00:34.9]} 29. Ke2 {[%clk
0:01:06.5]} 29... Rh5 {[%clk 0:00:35.1]} 30. Ncd2 {[%clk 0:01:02.1]} 30... Bb6
{[%clk 0:00:33.2]} 31. Nf3 {[%clk 0:00:57]} 31... Nb4 {[%clk 0:00:31.6]} 32. g4
{[%clk 0:00:53.8]} 32... Rh3 {[%clk 0:00:22.3]} 33. Nf2 {[%clk 0:00:43]} 33...
Rh6 {[%clk 0:00:16.8]} 34. g5 {[%clk 0:00:40.1]} 34... Rh5 {[%clk 0:00:15.9]}
35. a3 {[%clk 0:00:35]} 35... Nd5 {[%clk 0:00:16.1]} 36. Ng4 {[%clk 0:00:33.6]}
36... Rh3 {[%clk 0:00:16]} 37. Rg1 {[%clk 0:00:22.5]} 37... Nf4+ {[%clk
0:00:12.5]} 38. Kf2 {[%clk 0:00:13.5]} 38... Rh5 {[%clk 0:00:04.8]} 39. Rd1
{[%clk 0:00:10.5]} 39... Nd5 {[%clk 0:00:03.2]} 40. Ke2 {[%clk 0:00:09.6]} 40...
Rh3 {[%clk 0:00:02.8]} 41. Rg1 {[%clk 0:00:09.3]} 41... Nf4+ {[%clk 0:00:02.4]}
42. Kf2 {[%clk 0:00:09.2]} 42... Rh5 {[%clk 0:00:02.6]} 43. Rd1 {[%clk
0:00:08.3]} 43... Nd5 {[%clk 0:00:02.6]} 44. Ke2 {[%clk 0:00:06.9]} 44... Rh3
{[%clk 0:00:01.6]} 45. Rg1 {[%clk 0:00:06.1]} 1/2-1/2

[Event "Early-Titled-Tuesday-Blitz-September-12-2023"]
[Site "Chess.com"]
[Date "2023.09.12"]
[Round "8"]
[White "FuenfgegenWilly"]
[Black "ErikRonka"]
[Result "0-1"]
[WhiteElo "2359"]
[BlackElo "2523"]
[TimeControl "180+1"]
[EndTime "9:29:08 PDT"]
[Termination "ErikRonka won by resignation"]

1. e4 {[%clk 0:03:00.9]} 1... c6 {[%clk 0:02:37.8]} 2. Nc3 {[%clk 0:02:59.6]}
2... d5 {[%clk 0:02:38.7]} 3. Qe2 {[%clk 0:02:58.9]} 3... dxe4 {[%clk
0:02:27.2]} 4. Nxe4 {[%clk 0:02:59.8]} 4... Bf5 {[%clk 0:02:03.5]} 5. g4 {[%clk
0:02:59.7]} 5... Bc8 {[%clk 0:01:55.5]} 6. Bg2 {[%clk 0:02:54.6]} 6... g6 {[%clk
0:01:52.2]} 7. c3 {[%clk 0:02:49.1]} 7... Bg7 {[%clk 0:01:51.6]} 8. d4 {[%clk
0:02:48.7]} 8... Nf6 {[%clk 0:01:50.3]} 9. Nxf6+ {[%clk 0:02:43.1]} 9... Bxf6
{[%clk 0:01:51.2]} 10. h4 {[%clk 0:02:40.5]} 10... Qd6 {[%clk 0:01:39.1]} 11. h5
{[%clk 0:02:36.5]} 11... Qe6 {[%clk 0:01:36.5]} 12. g5 {[%clk 0:02:29.5]} 12...
Qxe2+ {[%clk 0:01:31.6]} 13. Nxe2 {[%clk 0:02:30.4]} 13... Bg7 {[%clk
0:01:31.8]} 14. Bf4 {[%clk 0:02:09]} 14... O-O {[%clk 0:01:25.7]} 15. O-O-O
{[%clk 0:02:01.9]} 15... Bg4 {[%clk 0:01:24.7]} 16. f3 {[%clk 0:01:58.2]} 16...
Be6 {[%clk 0:01:21.9]} 17. b3 {[%clk 0:01:47.1]} 17... Nd7 {[%clk 0:01:13.7]}
18. Bh3 {[%clk 0:01:37.4]} 18... Bxh3 {[%clk 0:01:12.1]} 19. Rxh3 {[%clk
0:01:38.3]} 19... Rfe8 {[%clk 0:00:47.6]} 20. Bg3 {[%clk 0:01:22.5]} 20... e5
{[%clk 0:00:46.6]} 21. d5 {[%clk 0:01:19.7]} 21... cxd5 {[%clk 0:00:24.5]} 22.
Rxd5 {[%clk 0:01:20.6]} 22... Nb6 {[%clk 0:00:25.2]} 23. Rd2 {[%clk 0:01:14.6]}
23... e4 {[%clk 0:00:25.7]} 24. fxe4 {[%clk 0:01:05.7]} 24... Rxe4 {[%clk
0:00:26.6]} 25. c4 {[%clk 0:00:49.3]} 25... Rae8 {[%clk 0:00:25.5]} 26. Nf4
{[%clk 0:00:39.4]} 26... Be5 {[%clk 0:00:24.3]} 27. Nd5 {[%clk 0:00:36]} 27...
Nxd5 {[%clk 0:00:22.9]} 28. Rxd5 {[%clk 0:00:29.1]} 28... Bxg3 {[%clk
0:00:13.2]} 29. Rxg3 {[%clk 0:00:30]} 29... Re1+ {[%clk 0:00:13.5]} 30. Kc2
{[%clk 0:00:27.5]} 30... R1e2+ {[%clk 0:00:13.1]} 31. Kc3 {[%clk 0:00:19.7]}
31... gxh5 {[%clk 0:00:14]} 32. Rd7 {[%clk 0:00:17.7]} 32... R2e3+ {[%clk
0:00:12.5]} 33. Rxe3 {[%clk 0:00:14.8]} 33... Rxe3+ {[%clk 0:00:13.4]} 34. Kd4
{[%clk 0:00:12.4]} 34... Re2 {[%clk 0:00:12.7]} 35. Rxb7 {[%clk 0:00:12]} 35...
h4 {[%clk 0:00:12.4]} 36. c5 {[%clk 0:00:06.3]} 36... h3 {[%clk 0:00:12]} 37. c6
{[%clk 0:00:05.4]} 37... h2 {[%clk 0:00:12.2]} 38. c7 {[%clk 0:00:02.8]} 38...
Rc2 {[%clk 0:00:10.3]} 39. Rb8+ {[%clk 0:00:03.1]} 39... Kg7 {[%clk 0:00:10.4]}
40. c8=Q {[%clk 0:00:03.7]} 40... Rxc8 {[%clk 0:00:10.8]} 41. Rxc8 {[%clk
0:00:04.6]} 41... h1=Q {[%clk 0:00:11.3]} 42. Rc5 {[%clk 0:00:04.1]} 42... Qa1+
{[%clk 0:00:09.5]} 43. Kd5 {[%clk 0:00:03.6]} 43... Qxa2 {[%clk 0:00:09.8]} 44.
Kc4 {[%clk 0:00:04.2]} 44... a5 {[%clk 0:00:07.2]} 45. Kc3 {[%clk 0:00:03.5]}
45... a4 {[%clk 0:00:07]} 46. bxa4 {[%clk 0:00:02.8]} 46... Qxa4 {[%clk
0:00:07.9]} 47. Rc4 {[%clk 0:00:02.9]} 47... Qxc4+ {[%clk 0:00:07.7]} 48. Kxc4
{[%clk 0:00:03.8]} 48... Kg6 {[%clk 0:00:08.5]} 0-1

[Event "Early-Titled-Tuesday-Blitz-September-12-2023"]
[Site "Chess.com"]
[Date "2023.09.12"]
[Round "8"]
[White "Manukyan_Artak"]
[Black "charlescandycampbell"]
[Result "1-0"]
[WhiteElo "2508"]
[BlackElo "2308"]
[TimeControl "180+1"]
[EndTime "9:29:09 PDT"]
[Termination "Manukyan_Artak won on time"]

1. e4 {[%clk 0:03:00.9]} 1... c6 {[%clk 0:03:00]} 2. d4 {[%clk 0:03:00.4]} 2...
d5 {[%clk 0:03:00.9]} 3. e5 {[%clk 0:03:00.9]} 3... Bf5 {[%clk 0:03:01]} 4. c4
{[%clk 0:03:01.1]} 4... e6 {[%clk 0:02:59.8]} 5. Nc3 {[%clk 0:03:01.3]} 5...
dxc4 {[%clk 0:02:59.7]} 6. Bxc4 {[%clk 0:03:00.7]} 6... Nd7 {[%clk 0:03:00.2]}
7. Nf3 {[%clk 0:02:56.1]} 7... Nb6 {[%clk 0:03:00.4]} 8. Bb3 {[%clk 0:02:56.1]}
8... h5 {[%clk 0:03:00.6]} 9. O-O {[%clk 0:02:54.2]} 9... h4 {[%clk 0:03:00.5]}
10. Bg5 {[%clk 0:02:53.6]} 10... Be7 {[%clk 0:03:00.5]} 11. Bxe7 {[%clk
0:02:53.7]} 11... Nxe7 {[%clk 0:03:00.5]} 12. h3 {[%clk 0:02:53.2]} 12... Ng6
{[%clk 0:02:59.9]} 13. Qd2 {[%clk 0:02:49.5]} 13... a5 {[%clk 0:02:55.7]} 14. a3
{[%clk 0:02:49.2]} 14... a4 {[%clk 0:02:55.5]} 15. Ba2 {[%clk 0:02:49.5]} 15...
O-O {[%clk 0:02:47.3]} 16. Rad1 {[%clk 0:02:46.9]} 16... Qe7 {[%clk 0:02:46.1]}
17. Qe3 {[%clk 0:02:32.7]} 17... Rfd8 {[%clk 0:02:44.7]} 18. Ne4 {[%clk
0:02:29.9]} 18... Nd5 {[%clk 0:02:40.2]} 19. Qe1 {[%clk 0:02:25.7]} 19... Ndf4
{[%clk 0:02:25.3]} 20. Nd6 {[%clk 0:02:21.2]} 20... Bd3 {[%clk 0:02:23.8]} 21.
Kh2 {[%clk 0:02:13.1]} 21... Bxf1 {[%clk 0:02:23.2]} 22. Qxf1 {[%clk 0:02:14]}
22... Rxd6 {[%clk 0:02:19]} 23. exd6 {[%clk 0:02:14.9]} 23... Qxd6 {[%clk
0:02:19.6]} 24. Kh1 {[%clk 0:02:13.3]} 24... Rd8 {[%clk 0:02:18.4]} 25. Bb1
{[%clk 0:02:12.9]} 25... Qe7 {[%clk 0:02:17.2]} 26. Qc4 {[%clk 0:02:08.5]} 26...
Qf6 {[%clk 0:02:10.3]} 27. Qxa4 {[%clk 0:02:04.8]} 27... Nxh3 {[%clk 0:02:09.7]}
28. Qc2 {[%clk 0:01:50]} 28... Nhf4 {[%clk 0:02:06]} 29. Qe4 {[%clk 0:01:42.3]}
29... Rd5 {[%clk 0:01:41.1]} 30. a4 {[%clk 0:01:35]} 30... c5 {[%clk 0:01:23.1]}
31. Qe3 {[%clk 0:01:25.7]} 31... cxd4 {[%clk 0:01:21.8]} 32. Rxd4 {[%clk
0:01:22.3]} 32... Rxd4 {[%clk 0:01:19.8]} 33. Nxd4 {[%clk 0:01:22]} 33... Qg5
{[%clk 0:01:17.5]} 34. Be4 {[%clk 0:01:12]} 34... f5 {[%clk 0:01:12.9]} 35. Bxb7
{[%clk 0:01:04.8]} 35... e5 {[%clk 0:01:13]} 36. Ne2 {[%clk 0:01:00.5]} 36... e4
{[%clk 0:01:09.8]} 37. Nxf4 {[%clk 0:00:53]} 37... Nxf4 {[%clk 0:01:08.2]} 38.
Bxe4 {[%clk 0:00:53.2]} 38... fxe4 {[%clk 0:01:07.5]} 39. Qxe4 {[%clk
0:00:54.1]} 39... g6 {[%clk 0:01:03.6]} 40. a5 {[%clk 0:00:42.2]} 40... Qg4
{[%clk 0:00:54.8]} 41. Kh2 {[%clk 0:00:32]} 41... g5 {[%clk 0:00:34]} 42. a6
{[%clk 0:00:30.5]} 42... Qc8 {[%clk 0:00:31.7]} 43. a7 {[%clk 0:00:23.5]} 43...
Qc7 {[%clk 0:00:17]} 44. a8=Q+ {[%clk 0:00:23.5]} 44... Kg7 {[%clk 0:00:17.3]}
45. Qab7 {[%clk 0:00:24]} 45... Qxb7 {[%clk 0:00:15.5]} 46. Qxb7+ {[%clk
0:00:24.9]} 46... Kg6 {[%clk 0:00:16.1]} 47. Qe4+ {[%clk 0:00:24.7]} 47... Kh5
{[%clk 0:00:16]} 48. f3 {[%clk 0:00:21]} 48... Kh6 {[%clk 0:00:15.5]} 49. b4
{[%clk 0:00:20.2]} 49... Ng6 {[%clk 0:00:08.9]} 50. b5 {[%clk 0:00:19.3]} 50...
Nf4 {[%clk 0:00:08.2]} 51. b6 {[%clk 0:00:18.9]} 1-0